bitfinex/quotes_SOLUSD_20240716
["timestamp","ask_amount","ask_price","bid_price","bid_amount"]
[1721115390484,22.9375,155.63,155.55,29.4]
[1721115390696,22.9375,155.63,155.54,20.0]
[1721115390697,22.9375,155.63,155.57,29.4]
[1721115390908,22.9375,155.63,155.58,20.0]
[1721115392596,22.9375,155.63,155.53,52.86]
[1721115393092,22.9375,155.63,155.53,42.86]
[1721115393296,1.60661233,155.62,155.51,49.58154791]
[1721115393528,22.9375,155.63,155.51,59.58154791]
[1721115393891,1.60662178,155.62,155.51,49.58154791]
[1721115394423,1.60662178,155.62,155.51,59.58154791]
[1721115394719,22.9375,155.63,155.51,59.58154791]
[1721115394892,1.60668947,155.62,155.51,59.58154791]
[1721115395100,22.9375,155.63,155.51,59.58154791]
[1721115395310,22.9375,155.63,155.52,20.0]
[1721115395311,1.60658887,155.62,155.52,20.0]
[1721115395704,1.60658887,155.62,155.52,30.0]
[1721115395900,22.9375,155.63,155.52,20.0]
[1721115396126,1.6066007,155.62,155.52,20.0]
[1721115397702,22.9375,155.63,155.52,39.4]
[1721115398014,1.60655203,155.62,155.52,20.0]
[1721115399029,16.6367,155.57,155.45,10.0]
[1721115399337,16.6367,155.57,155.44,260.5]
[1721115399338,23.2776,155.55,155.43,438.86]
[1721115399506,23.2776,155.55,155.44,6.72423721]
[1721115399705,23.2776,155.55,155.45,10.0]
[1721115399900,23.2776,155.55,155.45,29.4]
[1721115400225,23.2776,155.55,155.45,19.4]
[1721115400524,23.2776,155.55,155.43,428.86]
[1721115400525,1.60730182,155.54,155.43,428.86]
[1721115400824,1.60730182,155.54,155.43,42.86]
[1721115401017,1.60730182,155.54,155.43,19.4]
[1721115401202,1.60730182,155.54,155.43,6.72476567]
[1721115401821,15.2398,155.53,155.43,6.72476567]
[1721115402696,6.1213,155.52,155.43,6.72476567]
[1721115402905,6.1213,155.52,155.44,20.0]
[1721115405202,1.60757817,155.51,155.44,20.0]
[1721115405402,1.60757817,155.51,155.42,20.0]
[1721115405621,15.4867,155.5,155.42,20.0]
[1721115405825,78.3282,155.59,155.4,6.72588687]
[1721115405826,6.305,155.47,155.4,6.72588687]
[1721115406520,7.91300433,155.47,155.37,10.0]
[1721115406728,7.91300433,155.47,155.37,25.4867]
[1721115406909,6.305,155.47,155.37,25.4867]
[1721115407226,6.305,155.47,155.37,29.4]
[1721115407830,6.305,155.47,155.37,10.0]
[1721115408011,7.91310658,155.47,155.37,10.0]
[1721115408215,6.305,155.47,155.37,29.4]
[1721115408412,6.305,155.47,155.38,20.0]
[1721115408930,7.9130847,155.47,155.38,20.0]
[1721115410210,15.8569,155.46,155.36,6.72768481]
[1721115410410,1.60834505,155.45,155.36,6.72768481]
[1721115411206,15.8569,155.46,155.36,6.72768481]
[1721115411207,17.46525723,155.46,155.36,6.72768481]
[1721115411827,35.4738,155.54,155.36,6.72768481]
[1721115411828,22.761,155.44,155.36,6.72768481]
[1721115412002,22.761,155.44,155.33,656.5]
[1721115412202,22.761,155.44,155.33,16.72752831]
[1721115413019,22.761,155.44,155.34,39.4]
[1721115413325,22.761,155.44,155.35,72.26]
[1721115413530,22.761,155.44,155.38,10.0]
[1721115413705,22.761,155.44,155.39,20.0]
[1721115416109,22.761,155.44,155.36,29.4]
[1721115416110,22.761,155.44,155.37,20.0]
[1721115416509,22.761,155.44,155.36,20.0]
[1721115417734,22.761,155.44,155.39,72.26]
[1721115417914,22.761,155.44,155.4,20.0]
[1721115419237,22.761,155.44,155.37,49.4]
[1721115419448,22.761,155.44,155.37,20.0]
[1721115420841,16.1648,155.42,155.33,44.90752831]
[1721115421215,16.1648,155.42,155.34,29.4]
[1721115421427,16.1648,155.42,155.34,19.4]
[1721115421618,16.1648,155.42,155.33,44.90752831]
[1721115422041,16.1648,155.42,155.34,30.0]
[1721115422241,16.1648,155.42,155.36,48.18]
[1721115422439,6.291,155.44,155.41,38.18]
[1721115422645,15.7676,155.46,155.42,20.0]
[1721115422939,15.7676,155.46,155.44,38.18]
[1721115424239,15.7676,155.46,155.42,20.0]
[1721115424442,15.7676,155.46,155.39,30.0]
[1721115424744,15.7676,155.46,155.44,4.67622469]
[1721115424944,15.7676,155.46,155.37,1.48886722]
[1721115425139,15.6194,155.44,155.37,1.48886722]
[1721115425335,1.60859598,155.43,155.37,1.48886722]
[1721115425528,1.60859598,155.43,155.33,10.0]
[1721115425731,1.60859598,155.43,155.33,6.72875919]
[1721115425931,1.60859598,155.43,155.32,42.95]
[1721115426248,1.60859598,155.43,155.31,10.0]
[1721115426249,16.6092,155.41,155.3,35.0194]
[1721115426559,16.6092,155.39,155.29,10.0]
[1721115426841,18.21824672,155.39,155.29,10.0]
[1721115427349,16.6092,155.39,155.29,29.4]
[1721115427739,6.113,155.38,155.29,29.4]
[1721115428043,6.113,155.38,155.3,20.0]
[1721115428748,6.113,155.38,155.3,62.95]
[1721115430252,6.113,155.38,155.3,82.35]
[1721115431528,6.113,155.38,155.3,62.95]
[1721115432257,6.113,155.38,155.3,20.0]
[1721115432739,6.113,155.38,155.27,58.5694]
[1721115432740,6.0334,155.36,155.27,42.95]
[1721115432939,17.86687354,155.35,155.25,10.0]
[1721115433335,17.86687354,155.35,155.25,16.73230985]
[1721115433536,16.2575,155.35,155.25,16.73230985]
[1721115433857,16.2575,155.35,155.25,36.13230985]
[1721115434060,17.86688519,155.35,155.25,6.73230985]
[1721115435531,17.86688519,155.35,155.26,20.0]
[1721115437843,22.0312,155.34,155.26,20.0]
[1721115438939,23.7594707,155.33,155.25,6.73230985]
[1721115439135,23.7594707,155.33,155.2,62.35]
[1721115439456,6.6058,155.31,155.2,49.68401382]
[1721115439658,17.15407711,155.3,155.2,49.68401382]
[1721115439829,15.5441,155.3,155.2,49.68401382]
[1721115440036,15.5441,155.3,155.2,69.08401382]
[1721115440356,17.15399767,155.3,155.2,69.08401382]
[1721115440545,15.5441,155.3,155.2,69.08401382]
[1721115440753,17.15405652,155.3,155.2,69.08401382]
[1721115441355,15.5441,155.3,155.21,20.0]
[1721115441565,1.6098957,155.29,155.21,20.0]
[1721115441737,1.6098957,155.29,155.19,6.6058]
[1721115441738,15.7872,155.27,155.19,6.6058]
[1721115442167,17.39737715,155.27,155.19,6.6058]
[1721115442462,17.39737715,155.27,155.17,42.95]
[1721115442463,1.61017715,155.26,155.17,42.95]
[1721115443135,1.61017715,155.26,155.18,20.0]
[1721115443335,1.61017715,155.26,155.15,10.0]
[1721115443545,1.61017715,155.26,155.17,6.7358476]
[1721115443746,1.61017715,155.26,155.18,20.0]
[1721115444058,1.61017715,155.26,155.17,6.7358476]
[1721115445360,1.61017715,155.26,155.18,20.0]
[1721115445659,1.61017715,155.26,155.16,20.0]
[1721115445961,15.6229,155.24,155.16,20.0]
[1721115446638,1.61054349,155.23,155.16,20.0]
[1721115446844,21.8401,155.22,155.15,6.7358001]
[1721115447050,1.61081087,155.21,155.14,0.7943647]
[1721115448376,1.61092974,155.2,155.14,0.7943647]
[1721115448868,1.61095969,155.21,155.14,0.7943647]
[1721115449074,21.8401,155.22,155.14,0.7943647]
[1721115450187,21.8401,155.22,155.14,10.7943647]
[1721115450361,21.8401,155.22,155.16,10.0]
[1721115450558,21.8401,155.22,155.17,39.4]
[1721115450974,21.8401,155.22,155.17,20.0]
[1721115451587,21.8401,155.22,155.16,20.0]
[1721115451962,21.8401,155.22,155.16,49.4]
[1721115452462,21.8401,155.22,155.18,72.35]
[1721115452777,21.8401,155.22,155.19,20.0]
[1721115454692,21.8401,155.22,155.14,0.7943647]
[1721115455675,15.1079,155.2,155.14,0.7943647]
[1721115458179,15.1079,155.2,155.14,30.1943647]
[1721115458380,15.1079,155.2,155.15,20.0]
[1721115458585,15.1079,155.2,155.16,10.0]
[1721115458890,15.1079,155.2,155.17,20.0]
[1721115459063,15.1079,155.2,155.15,82.35]
[1721115459270,15.1079,155.2,155.16,10.0]
[1721115459465,15.1079,155.2,155.17,20.0]
[1721115460197,15.1079,155.2,155.16,20.0]
[1721115463781,15.1079,155.2,155.14,0.7943647]
[1721115465681,1.61098157,155.19,155.14,0.7943647]
[1721115465877,15.1079,155.2,155.14,0.7943647]
[1721115466290,16.71888618,155.2,155.14,0.7943647]
[1721115466799,6.4807,155.19,155.14,0.7943647]
[1721115469505,8.09180265,155.19,155.14,0.7943647]
[1721115470791,6.4807,155.19,155.14,0.7943647]
[1721115472096,8.09169325,155.19,155.14,0.7943647]
[1721115477080,15.7607,155.18,155.14,0.7943647]
[1721115477291,1.61125033,155.17,155.14,0.7943647]
[1721115477714,17.37194706,155.18,155.14,0.7943647]
[1721115478209,1.61124,155.17,155.14,0.7943647]
[1721115478813,17.37196609,155.18,155.14,0.7943647]
[1721115480411,15.7607,155.18,155.14,0.7943647]
[1721115480591,17.37194307,155.18,155.14,0.7943647]
[1721115481706,1.61119998,155.17,155.14,0.7943647]
[1721115482214,1.61119998,155.17,155.07,45.0399045]
[1721115482215,6.5323,155.15,155.07,45.0399045]
[1721115482418,6.5323,155.15,155.07,38.32]
[1721115482419,1.61167888,155.14,155.07,38.32]
[1721115483221,16.2121,155.13,155.07,38.32]
[1721115484023,16.2121,155.13,155.1,38.32]
[1721115484191,16.2121,155.13,155.11,20.0]
[1721115484394,10.0,155.32,155.11,20.0]
[1721115484395,16.2121,155.18,155.11,30.0]
[1721115484594,16.2121,155.18,155.14,38.32]
[1721115484809,16.2121,155.18,155.17,38.32]
[1721115485008,16.3789,155.28,155.17,58.32]
[1721115485213,16.3789,155.26,155.17,58.32]
[1721115485426,16.3789,155.26,155.12,38.32]
[1721115485427,16.494,155.24,155.12,38.32]
[1721115485628,18.10478899,155.24,155.15,38.32]
[1721115485832,0.94588642,155.18,155.15,38.32]
[1721115486933,0.94588642,155.18,155.15,57.72]
[1721115487234,21.8101,155.3,155.2,29.4]
[1721115487414,21.8101,155.3,155.23,38.32]
[1721115490812,1.60996875,155.29,155.23,38.32]
[1721115491329,21.8101,155.3,155.23,38.32]
[1721115491537,21.8101,155.3,155.24,20.0]
[1721115492644,15.4781,155.3,155.26,38.32]
[1721115492821,8.17406433,155.34,155.29,38.32]
[1721115492822,6.5641,155.34,155.29,38.32]
[1721115494310,8.17343085,155.34,155.24,63.03]
[1721115495020,8.17343085,155.34,155.24,20.0]
[1721115495252,8.17343085,155.34,155.22,63.03]
[1721115495735,6.5641,155.34,155.25,29.4]
[1721115495932,6.5641,155.34,155.26,20.0]
[1721115496246,8.17355532,155.34,155.26,20.0]
[1721115496615,8.17355532,155.34,155.23,20.0]
[1721115497233,8.17355532,155.34,155.23,49.4]
[1721115497546,6.5641,155.34,155.25,72.43]
[1721115497853,6.5641,155.34,155.26,20.0]
[1721115498142,6.5641,155.34,155.27,10.0]
[1721115498437,15.7075,155.35,155.28,63.03]
[1721115499346,15.7075,155.35,155.28,20.0]
[1721115499548,15.7075,155.35,155.26,20.0]
[1721115499938,1.60933569,155.34,155.26,20.0]
[1721115500241,6.3163,155.33,155.26,20.0]
[1721115503241,6.3163,155.33,155.26,30.0]
[1721115505441,6.3163,155.33,155.25,43.03]
[1721115505626,6.3163,155.33,155.23,19.35]
[1721115505824,1.60959795,155.32,155.22,43.03]
[1721115506026,1.60971998,155.32,155.22,43.03]
[1721115506330,15.7948,155.31,155.19,58.7375]
[1721115506536,1.60997579,155.3,155.19,78.0875]
[1721115506722,1.60997224,155.29,155.19,43.03]
[1721115506923,6.4507,155.28,155.19,43.03]
[1721115507122,15.5984,155.27,155.17,392.71781132]
[1721115507340,15.5984,155.27,155.17,6.71781132]
[1721115507341,17.20861679,155.27,155.17,6.71781132]
[1721115507646,1.61025064,155.26,155.17,6.71781132]
[1721115508051,1.61025064,155.26,155.16,43.03]
[1721115508553,1.61025064,155.26,155.16,49.75462206]
[1721115509146,1.61025064,155.26,155.17,20.0]
[1721115509353,15.5984,155.27,155.17,49.35]
[1721115509926,15.5984,155.27,155.17,20.0]
[1721115510435,17.20860436,155.27,155.17,20.0]
[1721115510651,17.20860436,155.27,155.17,39.35]
[1721115510852,15.5984,155.27,155.17,49.35]
[1721115511628,1.61020586,155.26,155.17,20.0]
[1721115511823,15.5984,155.27,155.17,49.35]
[1721115512753,1.61024586,155.26,155.17,20.0]
[1721115516337,6.0644,155.23,155.14,38.3]
[1721115516652,1.61090268,155.22,155.14,38.3]
[1721115517461,15.6299,155.21,155.14,38.3]
[1721115517657,1.61103026,155.2,155.14,38.3]
[1721115517961,1.61095924,155.2,155.15,20.0]
[1721115518459,1.61095924,155.2,155.11,6.7271839]
[1721115519753,1.61095326,155.2,155.11,6.7271839]
[1721115520060,1.61095326,155.2,155.12,20.0]
[1721115520464,17.24090162,155.21,155.12,20.0]
[1721115521252,1.61095724,155.2,155.12,20.0]
[1721115523369,6.4364,155.19,155.12,20.0]
[1721115524082,6.4364,155.19,155.12,49.35]
[1721115524275,6.4364,155.19,155.13,62.46]
[1721115525859,6.4364,155.19,155.13,43.11]
[1721115526059,6.4364,155.19,155.12,20.0]
[1721115527071,17.0122862,155.18,155.11,6.7271839]
[1721115527280,17.0122862,155.18,155.07,53.11]
[1721115527754,17.0122862,155.18,155.07,59.83618659]
[1721115528671,17.0122862,155.18,155.08,20.0]
[1721115529962,15.0719,155.16,155.07,6.72618659]
[1721115530276,1.61154137,155.15,155.07,6.72618659]
[1721115530450,1.61150158,155.14,155.07,6.72618659]
[1721115530652,21.6346,155.14,155.04,43.11]
[1721115530875,1.61182443,155.13,155.04,43.11]
[1721115531079,21.6346,155.14,155.04,49.83827674]
[1721115531264,1.61165332,155.13,155.04,49.83827674]
[1721115531656,1.61171882,155.13,155.04,49.83827674]
[1721115533081,16.4368,155.12,155.04,6.72827674]
[1721115533278,1.61182978,155.11,155.04,6.72827674]
[1721115533455,16.4368,155.12,155.04,6.72827674]
[1721115537884,1.61181532,155.11,155.04,6.72827674]
[1721115538375,1.61181532,155.11,155.02,43.11]
[1721115538678,1.61181532,155.11,155.03,20.0]
[1721115539480,6.4634,155.08,155.02,6.72849054]
[1721115539791,6.4634,155.08,155.0,19.35]
[1721115540291,6.4634,155.08,155.01,38.38]
[1721115540660,8.07552171,155.08,155.01,38.38]
[1721115540965,6.4634,155.08,155.04,38.38]
[1721115541881,6.4634,155.08,155.07,38.38]
[1721115542074,15.7426,155.09,155.07,38.38]
[1721115543984,21.3769,155.17,155.09,29.35]
[1721115544180,21.3769,155.17,155.12,38.38]
[1721115544362,21.3769,155.17,155.12,57.73]
[1721115544568,21.3769,155.17,155.13,30.0]
[1721115544789,15.1043,155.17,155.16,38.38]
[1721115545885,15.1043,155.17,155.13,20.0]
[1721115546190,15.1043,155.17,155.12,38.38]
[1721115546558,15.1043,155.17,155.1,20.0]
[1721115546764,15.1043,155.17,155.09,38.38]
[1721115546958,6.2987,155.16,155.09,38.38]
[1721115547979,7.91007091,155.16,155.09,38.38]
[1721115548360,6.2987,155.16,155.1,20.0]
[1721115548559,6.2987,155.16,155.09,38.38]
[1721115548560,7.91003437,155.16,155.09,38.38]
[1721115548974,15.2513,155.15,155.06,38.38]
[1721115549300,1.61172626,155.14,155.01,10.0]
[1721115549591,15.2513,155.12,155.04,38.38]
[1721115549785,1.61193404,155.11,155.04,38.38]
[1721115549991,1.61193404,155.11,155.01,29.35]
[1721115550170,1.61193404,155.11,155.04,38.38]
[1721115550368,1.61193404,155.11,155.0,6.72928984]
[1721115550702,21.9079,155.1,155.0,38.38]
[1721115550997,1.61237035,155.09,155.0,38.38]
[1721115557369,6.1202,155.07,155.0,38.38]
[1721115557575,1.61254962,155.06,154.99,0.7943647]
[1721115558179,6.1202,155.07,154.99,0.7943647]
[1721115558390,7.73251241,155.07,154.99,0.7943647]
[1721115558787,7.73256054,155.07,154.99,0.7943647]
[1721115559610,6.1202,155.07,154.99,0.7943647]
[1721115559779,6.1202,155.07,155.02,38.38]
[1721115561197,7.73246057,155.07,154.99,39.1743647]
[1721115564495,16.5893,155.06,154.99,39.1743647]
[1721115564803,16.5893,155.03,154.99,0.7943647]
[1721115565003,18.20209119,155.03,154.99,0.7943647]
[1721115570788,18.20209119,155.03,154.93,38.38]
[1721115571013,6.3348,155.01,154.93,38.38]
[1721115571309,16.2686,154.99,154.93,38.38]
[1721115571508,1.61344023,154.98,154.93,38.38]
[1721115573093,16.2686,154.99,154.93,38.38]
[1721115574309,16.2686,154.99,154.96,38.38]
[1721115574514,6.3348,155.01,154.96,38.38]
[1721115574811,6.3348,155.01,154.99,38.38]
[1721115576797,15.7322,155.03,154.99,38.38]
[1721115577311,6.0895,155.06,155.02,38.38]
[1721115578288,7.70181845,155.06,155.02,38.38]
[1721115578516,7.70181845,155.06,154.99,38.38]
[1721115578887,6.0895,155.06,155.02,38.38]
[1721115579148,6.0895,155.06,155.05,38.38]
[1721115579324,16.0305,155.07,155.05,38.38]
[1721115582717,16.0305,155.07,155.02,38.38]
[1721115586291,1.61232247,155.06,154.95,10.0]
[1721115586600,15.6494,155.04,154.96,38.38]
[1721115586807,1.61288804,155.03,154.96,38.38]
[1721115589600,12.6421,155.02,154.89,386.0]
[1721115589828,17.97004536,155.01,154.89,38.38]
[1721115590225,17.97004536,155.01,154.92,38.38]
[1721115590899,17.97004536,155.01,154.95,38.38]
[1721115591305,16.3566,155.01,154.95,38.38]
[1721115591512,17.96962287,155.01,154.95,38.38]
[1721115592629,17.96962287,155.01,154.91,38.38]
[1721115593430,6.4516,155.0,154.91,38.38]
[1721115593603,1.61358723,154.99,154.91,38.38]
[1721115593805,22.8845,154.97,154.91,38.38]
[1721115594013,1.61359399,154.96,154.91,38.38]
[1721115594201,1.61361166,154.95,154.87,38.38]
[1721115595333,15.0257,154.94,154.87,38.38]
[1721115595620,1.61409285,154.93,154.84,39.1743647]
[1721115595843,1.6140576,154.92,154.84,39.1743647]
[1721115596426,6.6261,154.91,154.84,39.1743647]
[1721115596608,1.61428758,154.9,154.84,0.7943647]
[1721115596811,1.61431737,154.89,154.84,0.7943647]
[1721115597719,15.8136,154.88,154.84,0.7943647]
[1721115597920,17.42799104,154.88,154.84,0.7943647]
[1721115598326,6.3162,154.87,154.84,0.7943647]
[1721115598508,1.61475949,154.86,154.78,38.38]
[1721115598709,1.61482425,154.85,154.78,38.38]
[1721115599733,1.61482425,154.85,154.75,6.68711178]
[1721115600037,1.61482425,154.85,154.77,38.38]
[1721115600331,1.61480812,154.86,154.8,38.38]
[1721115600535,7.93100812,154.87,154.8,38.38]
[1721115600833,6.3162,154.87,154.8,38.38]
[1721115601129,7.93061154,154.87,154.8,38.38]
[1721115601338,7.93061154,154.87,154.75,6.68711178]
[1721115601507,7.93061154,154.87,154.77,38.38]
[1721115601905,14.38761154,154.87,154.77,38.38]
[1721115602116,15.6663,154.86,154.77,38.38]
[1721115602333,1.61497664,154.85,154.77,38.38]
[1721115604607,1.61497664,154.85,154.75,6.70177335]
[1721115604608,17.28099485,154.86,154.8,38.38]
[1721115604812,15.6663,154.86,154.8,38.38]
[1721115606439,1.61441877,154.85,154.8,38.38]
[1721115607221,1.61441877,154.85,154.75,6.70177335]
[1721115607540,1.61441877,154.85,154.72,25.6663]
[1721115607541,1.61441877,154.85,154.77,38.38]
[1721115608441,15.4982,154.83,154.68,0.7943647]
[1721115608650,1.61547897,154.82,154.71,38.38]
[1721115609935,21.9881,154.81,154.71,38.38]
[1721115610141,1.6156522,154.8,154.71,38.38]
[1721115610340,6.5226,154.77,154.68,0.7943647]
[1721115610513,1.61600455,154.76,154.68,0.7943647]
[1721115610711,15.4655,154.75,154.68,0.7943647]
[1721115610911,1.61606612,154.74,154.68,0.7943647]
[1721115611313,6.5226,154.73,154.68,0.7943647]
[1721115611526,1.61631604,154.72,154.68,0.7943647]
[1721115611930,8.1386414,154.73,154.68,39.1743647]
[1721115612337,8.1386414,154.73,154.68,0.7943647]
[1721115612511,6.5226,154.7,154.53,10.83500582]
[1721115612720,15.4655,154.66,154.53,0.83500582]
[1721115612921,1.61713164,154.65,154.53,0.83500582]
[1721115613139,21.9881,154.66,154.53,0.83500582]
[1721115613618,21.9881,154.66,154.54,50.07272734]
[1721115614219,21.9881,154.66,154.54,6.70272734]
[1721115614753,21.9881,154.66,154.53,0.83500582]
[1721115615128,21.9881,154.66,154.55,10.0]
[1721115615342,21.9881,154.66,154.53,0.83500582]
[1721115615951,15.5689,154.65,154.53,0.83500582]
[1721115616629,15.5689,154.65,154.53,10.83500582]
[1721115617028,15.5689,154.65,154.53,0.83500582]
[1721115617944,20.0,154.64,154.53,0.83500582]
[1721115618242,15.5689,154.65,154.53,0.83500582]
[1721115618952,21.5784,154.79,154.57,10.0]
[1721115619117,6.4621,154.75,154.58,63.37]
[1721115619322,16.6555,154.74,154.58,63.37]
[1721115619649,16.6555,154.74,154.63,43.37]
[1721115619829,16.6555,154.74,154.64,20.0]
[1721115620458,16.6555,154.74,154.64,30.0]
[1721115621245,16.6555,154.74,154.68,10.0]
[1721115621453,16.6555,154.74,154.66,43.37]
[1721115621454,16.6555,154.74,154.69,43.37]
[1721115621669,16.6555,154.74,154.66,53.37]
[1721115621827,16.6555,154.74,154.67,30.0]
[1721115622026,16.6555,154.74,154.69,43.37]
[1721115622540,16.6555,154.74,154.69,53.37]
[1721115622737,6.4701,154.78,154.71,10.0]
[1721115622951,6.4701,154.78,154.72,63.37]
[1721115623145,15.8442,154.81,154.73,10.0]
[1721115623332,15.8442,154.81,154.74,20.0]
[1721115623530,15.8442,154.81,154.72,92.72]
[1721115624038,15.8442,154.81,154.76,43.37]
[1721115624335,16.4813,154.87,154.79,43.37]
[1721115624654,16.4813,154.87,154.8,20.0]
[1721115624830,16.4813,154.87,154.79,43.37]
[1721115625151,16.4813,154.87,154.76,43.37]
[1721115625340,16.4813,154.87,154.79,43.37]
[1721115625547,16.4813,154.87,154.8,20.0]
[1721115626249,16.4813,154.87,154.82,43.37]
[1721115627960,16.4813,154.87,154.8,20.0]
[1721115628160,16.4813,154.87,154.81,43.37]
[1721115628463,16.4813,154.87,154.84,43.37]
[1721115628960,6.5608,154.88,154.84,43.37]
[1721115629260,15.6019,154.93,154.85,20.0]
[1721115629475,15.6019,154.93,154.87,43.37]
[1721115630184,15.6019,154.93,154.9,43.37]
[1721115630345,6.0994,154.95,154.9,53.37]
[1721115630539,21.7351,155.0,154.93,43.37]
[1721115632474,21.7351,155.0,154.96,43.37]
[1721115632677,6.5122,155.05,154.96,53.37]
[1721115633139,6.5122,155.05,154.94,20.0]
[1721115633140,6.5122,155.05,154.99,43.37]
[1721115633763,6.5122,155.05,155.0,10.0]
[1721115634480,6.5122,155.05,154.99,43.37]
[1721115635765,0.7943647,155.07,155.02,10.0]
[1721115635967,0.7943647,155.07,155.04,43.37]
[1721115636393,0.7943647,155.07,154.98,10.0]
[1721115636604,0.7943647,155.07,155.0,43.37]
[1721115636769,0.7943647,155.07,155.01,20.0]
[1721115637375,0.7943647,155.07,155.01,30.0]
[1721115637665,0.7943647,155.07,155.03,43.37]
[1721115638089,0.7943647,155.07,155.03,53.37]
[1721115638265,0.7943647,155.07,155.03,43.37]
[1721115638466,0.7943647,155.07,155.03,53.37]
[1721115638968,0.7943647,155.07,155.03,43.37]
[1721115639377,0.7943647,155.07,155.03,53.37]
[1721115639687,0.7943647,155.07,155.03,43.37]
[1721115642178,0.7943647,155.07,155.03,53.37]
[1721115642390,0.7943647,155.07,155.06,43.37]
[1721115642598,0.7943647,155.07,155.06,63.37]
[1721115646578,0.7943647,155.07,155.06,43.37]
[1721115646981,0.7943647,155.07,155.06,53.37]
[1721115647608,0.7943647,155.07,155.06,43.37]
[1721115647978,0.7943647,155.07,155.06,63.37]
[1721115648876,0.7943647,155.07,155.06,73.37]
[1721115649496,0.7943647,155.07,155.06,82.72]
[1721115649905,0.7943647,155.07,155.06,63.37]
[1721115650995,0.7943647,155.07,155.04,43.37]
[1721115651381,0.7943647,155.07,155.01,43.37]
[1721115651589,21.7322,155.06,154.98,53.37]
[1721115651790,21.7322,155.06,155.0,10.0]
[1721115652177,21.7322,155.06,154.98,43.37]
[1721115652894,21.7322,155.06,154.96,22.8774]
[1721115652895,1.61241566,155.05,154.96,22.8774]
[1721115653079,1.61270424,155.04,154.95,43.37]
[1721115653893,1.6127385,155.05,154.95,72.72]
[1721115654095,1.61259267,155.04,154.95,43.37]
[1721115654605,1.61259267,155.04,154.92,43.37]
[1721115655191,1.61296815,155.05,154.92,43.37]
[1721115655396,15.5112,155.03,154.92,43.37]
[1721115655705,1.61310546,155.02,154.92,43.37]
[1721115655901,1.61320709,155.01,154.92,43.37]
[1721115656282,1.61320709,155.01,154.9,15.5112]
[1721115656479,6.152,155.0,154.9,15.5112]
[1721115656678,1.61351193,154.99,154.89,646.5]
[1721115656879,1.61352387,154.98,154.89,646.5]
[1721115657297,6.152,155.0,154.89,656.5]
[1721115657298,1.61347948,154.99,154.89,656.5]
[1721115657484,1.61331046,154.98,154.89,646.5]
[1721115657687,1.61331298,154.99,154.89,646.5]
[1721115657887,1.61331559,154.98,154.89,646.5]
[1721115658302,15.8406,154.97,154.88,6.4509]
[1721115658479,1.61371766,154.96,154.88,6.4509]
[1721115658884,1.61371766,154.96,154.85,6.72195077]
[1721115659100,1.61371766,154.96,154.84,43.37]
[1721115659301,1.61371766,154.96,154.83,43.37]
[1721115659302,6.0277,154.95,154.83,43.37]
[1721115659505,1.61395098,154.94,154.83,43.37]
[1721115659915,1.61395098,154.94,154.82,43.37]
[1721115660119,1.61395098,154.94,154.83,29.35]
[1721115660306,7.64141295,154.95,154.85,43.37]
[1721115661086,7.64141295,154.95,154.82,43.37]
[1721115661388,7.64141295,154.95,154.83,20.0]
[1721115661594,7.64141295,154.95,154.82,43.37]
[1721115661808,7.64141295,154.95,154.82,50.08409149]
[1721115662507,16.51,154.94,154.82,50.08409149]
[1721115662718,1.6140349,154.93,154.82,50.08409149]